bitfinex/quotes_SOLUSD_20240808
["timestamp","ask_amount","ask_price","bid_price","bid_amount"]
[1723158089834,6.5688,162.65,162.52,40.65]
[1723158090020,6.5688,162.65,162.52,1.03040336]
[1723158090656,12.717,162.65,162.56,6.1513]
[1723158090846,6.5688,162.65,162.57,1.02988053]
[1723158091039,6.1449,162.74,162.65,6.1479]
[1723158091276,16.0707,162.84,162.7,6.1462]
[1723158091277,6.1427,162.8,162.7,6.1462]
[1723158091546,40.65,162.81,162.57,40.65]
[1723158091547,6.1418,162.82,162.71,1.02693016]
[1723158091759,16.0707,162.84,162.71,1.02693016]
[1723158091925,6.1438,162.77,162.71,1.02661939]
[1723158092120,40.65,162.82,162.68,15.3668]
[1723158092424,6.1419,162.82,162.73,6.1449]
[1723158092627,6.1419,162.82,162.74,1.025707]
[1723158092839,6.2942,162.87,162.75,40.65]
[1723158093042,6.2942,162.87,162.72,35.3633]
[1723158093043,6.1385,162.91,162.81,6.1419]
[1723158093253,15.3434,162.94,162.82,1.02401791]
[1723158093553,40.65,162.93,162.82,1.02401791]
[1723158093845,16.0707,162.96,162.71,20.0]
[1723158093846,55.9971,162.9,162.71,20.0]
[1723158094061,40.65,162.87,162.73,15.3626]
[1723158094226,40.65,162.9,162.76,20.0]
[1723158094558,40.65,162.9,162.75,40.65]
[1723158094730,40.65,162.87,162.75,1.0242718]
[1723158095130,56.7207,162.96,162.73,20.0]
[1723158095131,40.65,162.9,162.76,16.3850368]
[1723158095525,6.1409,162.85,162.76,15.3598]
[1723158095726,40.65,162.9,162.77,1.02486827]
[1723158095926,40.65,162.9,162.76,15.3598]
[1723158095927,6.1407,162.85,162.78,6.1431]
[1723158096146,40.65,162.9,162.76,15.3598]
[1723158096354,40.65,162.84,162.71,15.364]
[1723158096544,40.65,162.87,162.75,6.1442]
[1723158097227,6.1418,162.82,162.71,57.03977069]
[1723158097433,40.65,162.87,162.71,57.03977069]
[1723158097633,40.65,162.87,162.73,6.145]
[1723158097934,6.1432,162.78,162.71,40.65]
[1723158098132,40.65,162.79,162.65,1.02662081]
[1723158098436,15.3585,162.78,162.65,1.02748971]
[1723158098697,15.3585,162.78,162.65,6.148]
[1723158098976,6.1458,162.72,162.63,1.0280144]
[1723158099257,6.1441,162.76,162.65,1.0280144]
[1723158099456,40.65,162.79,162.67,56.0178]
[1723158099660,40.65,162.82,162.67,56.0178]
[1723158099957,6.1452,162.73,162.67,15.3678]
[1723158100158,40.65,162.79,162.64,40.65]
[1723158100370,20.0,162.78,162.64,40.65]
[1723158100658,40.65,162.76,162.64,6.1483]
[1723158100860,15.3599,162.77,162.65,1.0277952]
[1723158101061,40.65,162.71,162.62,15.3725]
[1723158101658,6.1467,162.69,162.63,1.02870898]
[1723158101864,1.63252571,162.99,162.98,6.1357]
[1723158102037,1.63252571,162.99,162.97,6.37671]
[1723158103246,1.63252571,162.99,162.97,12.51271]
[1723158103449,1.63252571,162.99,162.98,20.0]
[1723158103753,1.63252571,162.99,162.98,85.0]
[1723158103949,1.63252571,162.99,162.97,12.51271]
[1723158104369,45.65,163.22,162.99,46.1353]
[1723158104568,45.65,163.22,163.07,15.3305]
[1723158104759,6.1298,163.14,163.08,1.01845265]
[1723158104961,6.1298,163.14,163.07,15.3305]
[1723158104962,40.65,163.19,163.04,40.65]
[1723158105169,55.9698,163.19,163.05,1.01886503]
[1723158105547,6.1306,163.12,163.05,1.01886503]
[1723158105748,0.15733923,163.15,163.05,1.01886503]
[1723158106147,40.65,163.14,163.03,1.01894085]
[1723158106349,40.65,163.14,162.99,1.01929401]
[1723158106773,6.1302,163.13,163.03,6.1336]
[1723158107079,0.15733923,163.15,163.02,1.01866729]
[1723158107080,6.1313,163.1,163.02,1.01866729]
[1723158107250,6.1306,163.12,163.03,7.15277879]
[1723158107457,0.15733923,163.15,163.05,6.1328]
[1723158107458,6.1302,163.13,163.05,6.1328]
[1723158107656,0.15733923,163.15,163.01,55.9857]
[1723158107879,0.15733923,163.15,163.02,1.0187713]
[1723158107880,40.80733923,163.15,163.02,1.0187713]
[1723158108080,40.80733923,163.15,163.01,55.9857]
[1723158108081,6.1322,163.08,163.01,15.3357]
[1723158108280,40.65,163.12,162.98,40.65]
[1723158108452,6.1332,163.05,162.97,6.1359]
[1723158108653,6.1332,163.05,162.96,15.3407]
[1723158108654,40.65,163.12,163.0,15.3371]
[1723158108985,6.131,163.11,163.03,6.1337]
[1723158109183,6.1302,163.13,163.05,6.1328]
[1723158109486,0.15733923,163.15,163.01,40.65]
[1723158109664,0.15733923,163.15,163.02,1.0186198]
[1723158110010,40.65,163.13,163.03,6.1338]
[1723158110305,0.15733923,163.15,163.03,15.3345]
[1723158110594,6.1306,163.12,163.03,22.48733519]
[1723158110798,0.15733923,163.15,163.03,16.35373519]
[1723158110973,6.1299,163.14,163.03,36.35373519]
[1723158111289,0.15733923,163.15,163.03,16.35373519]
[1723158111598,6.1305,163.12,163.04,6.1333]
[1723158111789,0.15733923,163.15,163.03,16.35373519]
[1723158111987,40.65,163.13,162.98,57.00771153]
[1723158112304,40.65,163.13,162.99,7.15508548]
[1723158112305,20.0,163.12,162.99,7.15508548]
[1723158112600,6.1305,163.12,163.04,6.1333]
[1723158112902,0.15733923,163.15,163.06,21.4635]
[1723158113101,0.15733923,163.15,163.07,1.01821805]
[1723158113267,0.15733923,163.15,163.08,1.01845316]
[1723158113468,0.15733923,163.15,163.06,16.34896218]
[1723158113687,6.1298,163.14,163.06,16.34896218]
[1723158113895,0.15733923,163.15,163.07,7.15054139]
[1723158114301,0.15733923,163.15,163.08,6.1318]
[1723158114476,0.15733923,163.15,163.04,6.1331]
[1723158114677,0.15733923,163.15,163.01,55.9855]
[1723158114879,0.15733923,163.15,163.08,6.1318]
[1723158115088,0.15733923,163.15,163.05,15.3321]
[1723158115403,6.1305,163.12,163.05,21.465]
[1723158115568,40.65,163.14,163.05,21.465]
[1723158115996,6.1316,163.09,163.02,7.1523669]
[1723158116298,6.1316,163.09,162.98,60.65]
[1723158116299,0.15733923,163.15,163.07,15.3306]
[1723158116489,6.1311,163.11,163.02,6.1339]
[1723158116675,40.80733923,163.15,163.03,1.01900997]
[1723158116879,40.80733923,163.15,163.08,6.1318]
[1723158117075,26.59713069,163.15,163.07,1.01800069]
[1723158117285,26.59713069,163.15,163.02,20.0]
[1723158117286,6.1313,163.1,163.03,6.1337]
[1723158117585,37.1893,163.28,163.12,6.1303]
[1723158117889,37.1893,163.28,163.05,1.01781134]
[1723158117890,40.65,163.15,163.05,1.01781134]
[1723158118089,40.65,163.15,163.02,15.3354]
[1723158118282,6.1306,163.12,163.05,6.1329]
[1723158118480,40.65,163.15,163.02,15.3354]
[1723158118687,6.1308,163.11,163.03,7.15308122]
[1723158118877,6.1308,163.11,163.02,15.3354]
[1723158118878,40.65,163.12,163.04,6.1333]
[1723158119080,40.65,163.15,163.06,15.3316]
[1723158119296,46.7793,163.15,163.07,1.01837826]
[1723158119497,6.1286,163.17,163.1,6.1311]
[1723158119701,40.65,163.18,163.07,6.132]
[1723158119903,6.1292,163.16,163.08,7.14967541]
[1723158120106,6.1292,163.16,163.08,6.1318]
[1723158120396,40.65,163.18,163.09,15.3283]
[1723158120606,40.65,163.21,163.11,6.1307]
[1723158120770,40.65,163.21,163.09,21.4595]
[1723158120976,5.0,163.22,163.13,15.3251]
[1723158121222,5.0,163.22,163.07,40.65]
[1723158121223,6.1295,163.15,163.07,6.132]
[1723158121404,6.1298,163.14,163.07,6.132]
[1723158121702,40.65,163.14,163.01,15.3361]
[1723158121883,6.1297,163.14,163.05,15.3325]
[1723158122076,6.1297,163.14,163.07,6.1322]
[1723158122276,40.65,163.15,163.05,15.3325]
[1723158122473,40.65,163.15,163.01,40.65]
[1723158122894,6.1294,163.15,163.07,6.132]
[1723158123079,40.65,163.18,163.08,1.01847928]
[1723158123288,40.65,163.18,163.03,30.6689]
[1723158123289,6.1294,163.15,163.09,15.328]
[1723158123515,40.65,163.2,163.09,15.328]
[1723158123805,40.65,163.2,163.06,6.1326]
[1723158124104,5.0,163.22,163.05,16.3507145]
[1723158124105,6.1298,163.14,163.05,16.3507145]
[1723158124403,6.1298,163.14,163.05,15.3325]
[1723158124585,40.65,163.14,163.05,21.4654]
[1723158124790,40.65,163.14,163.02,1.01848381]
[1723158124791,40.65,163.14,163.02,1.01886583]
[1723158125008,40.65,163.14,163.03,6.1337]
[1723158125207,6.1306,163.12,163.03,15.3338]
[1723158125518,40.65,163.14,163.03,15.3338]
[1723158125519,6.1312,163.1,163.03,21.4674]
[1723158126425,40.65,163.2,162.99,1.01949906]
[1723158126426,40.65,163.11,162.99,15.3381]
[1723158126596,40.65,163.11,162.96,40.65]
[1723158126789,40.65,163.11,162.96,72.35134614]
[1723158126994,6.1318,163.09,163.01,15.3358]
[1723158127200,55.9746,163.14,163.01,15.3358]
[1723158127418,30.6425,163.18,162.97,15.3398]
[1723158127419,40.65,163.11,162.97,15.3398]
[1723158127624,6.1318,163.09,163.02,6.1341]
[1723158127827,40.65,163.11,163.0,15.3366]
[1723158127996,40.65,163.11,163.0,21.4715]
[1723158128192,6.1323,163.07,163.0,21.4715]
[1723158128397,6.1327,163.06,163.0,15.3366]
[1723158128632,1.53356273,163.1,162.97,6.1357]
[1723158128804,46.781,163.11,163.04,6.1333]
[1723158129010,16.5684,163.14,162.99,40.65]
[1723158129011,6.1304,163.13,162.99,40.65]
[1723158129205,57.2184,163.14,163.02,15.3346]
[1723158129429,57.2184,163.14,162.99,40.65]
[1723158129430,40.65,163.11,162.99,6.1353]
[1723158129605,40.65,163.11,162.98,15.3389]
[1723158129606,6.1325,163.07,162.98,15.3389]
[1723158129805,6.1318,163.09,162.98,15.3389]
[1723158130008,6.1321,163.08,163.0,6.1347]
[1723158130210,33.54165632,163.11,162.98,15.3389]
[1723158130411,33.54165632,163.11,162.98,16.35948267]
[1723158130614,33.54165632,163.11,162.98,15.3389]
[1723158130615,6.1319,163.08,162.98,15.3389]
[1723158130995,33.54165632,163.11,162.98,15.3389]
[1723158131208,6.1331,163.05,162.99,6.1353]
[1723158131418,6.1327,163.06,163.0,6.1349]
[1723158131620,6.1327,163.06,162.98,15.3389]
[1723158131925,6.1331,163.05,162.98,21.4745]
[1723158132298,6.1326,163.07,162.99,6.1352]
[1723158132530,6.1338,163.03,162.98,15.3389]
[1723158132729,40.65,163.08,162.94,15.3426]
[1723158133194,6.1338,163.03,162.97,6.136]
[1723158133400,40.65,163.08,162.97,6.136]
[1723158133600,40.65,163.08,162.94,15.3426]
[1723158133807,6.1338,163.04,162.98,6.1356]
[1723158134326,6.1333,163.05,162.98,6.1353]
[1723158134537,40.65,163.07,162.93,15.3435]
[1723158134833,40.65,163.04,162.93,15.3435]
[1723158135023,40.65,163.04,162.95,6.1367]
[1723158135202,40.65,163.07,162.97,15.3396]
[1723158135400,6.1338,163.03,162.95,6.1365]
[1723158135625,6.1338,163.03,162.95,1.02113254]
[1723158135827,6.1333,163.05,162.97,6.136]
[1723158136137,6.135,163.0,162.93,15.3435]
[1723158136433,55.9841,163.04,162.9,1.02231815]
[1723158136638,40.65,163.01,162.89,15.3475]
[1723158136806,6.1355,162.99,162.89,15.3475]
[1723158137130,40.65,163.01,162.9,6.1383]
[1723158137331,6.1355,162.99,162.9,6.1383]
[1723158137629,6.1358,162.98,162.89,21.4863]
[1723158137826,6.1358,162.98,162.9,6.1386]
[1723158138240,6.1352,163.0,162.89,15.3475]
[1723158138738,40.65,163.01,162.92,6.1379]
[1723158139030,6.1352,163.0,162.92,6.1379]
[1723158139236,40.65,163.01,162.92,6.1379]
[1723158139237,40.65,163.04,162.93,1.02208233]
[1723158139534,6.1346,163.01,162.93,6.1373]
[1723158140137,40.65,163.04,162.92,15.3442]
[1723158140343,6.1355,162.99,162.92,15.3442]
[1723158140655,6.1355,162.99,162.91,6.138]
[1723158140656,40.65,163.04,162.91,1.02224601]
[1723158140861,6.1346,163.01,162.92,40.65]
[1723158141026,40.65,163.04,162.91,15.3452]
[1723158141231,6.1361,162.97,162.91,15.3452]
[1723158141433,40.65,163.01,162.88,6.1391]
[1723158141627,6.1359,162.98,162.9,6.1386]
[1723158141932,15.3351,163.03,162.91,1.02266357]
[1723158142127,6.1357,162.98,162.91,7.16076357]
[1723158142331,15.3351,163.03,162.91,6.1381]
[1723158142644,1.53427547,163.02,162.9,15.3462]
[1723158142855,6.1365,162.96,162.88,6.1394]
[1723158143161,6.1381,162.92,162.82,15.354]
[1723158143453,6.1221,162.95,162.85,15.3506]
[1723158143658,40.65,162.93,162.77,40.65]
[1723158143860,46.53516407,162.94,162.74,24.589558]
[1723158143861,40.65,162.87,162.74,24.589558]
[1723158144067,40.65,162.87,162.76,15.3595]
[1723158144365,40.65,162.87,162.76,0.330444]
[1723158144366,40.65,162.84,162.76,0.330444]
[1723158144533,1.53605935,162.83,162.76,0.330444]
[1723158144738,1.53605978,162.82,162.76,0.330444]
[1723158144967,1.53605994,162.84,162.76,0.330444]
[1723158145171,40.65,162.87,162.76,0.330444]
[1723158145345,40.65,162.9,162.76,0.330444]
[1723158145667,6.1417,162.82,162.76,0.330444]
[1723158145864,6.1422,162.81,162.76,0.330444]
[1723158146064,1.53606808,162.8,162.76,0.330444]
[1723158146243,6.1433,162.78,162.76,0.330444]
[1723158146556,1.53630991,162.77,162.76,0.330444]
[1723158146965,1.53630991,162.77,162.61,0.8338122]
[1723158146966,6.1476,162.67,162.61,0.8338122]
[1723158147141,40.65,162.72,162.61,0.8338122]
[1723158147347,6.1483,162.65,162.61,0.8338122]
[1723158147545,6.1474,162.67,162.61,0.8338122]
[1723158147745,40.65,162.69,162.61,0.8338122]
[1723158148162,6.1491,162.63,162.61,0.8338122]
[1723158148382,40.65,162.69,162.61,0.8338122]
[1723158148541,45.0,162.68,162.52,40.65]
[1723158148739,45.0,162.68,162.49,46.8041]
[1723158148740,6.151,162.58,162.49,46.8041]
[1723158149039,6.152,162.55,162.46,46.8051]
[1723158149239,6.1528,162.53,162.46,40.65]
[1723158149456,42.18865506,162.6,162.46,40.65]
[1723158149647,42.18865506,162.6,162.43,62.1967]
[1723158149648,6.1529,162.53,162.43,62.1967]
[1723158149944,40.65,162.57,162.43,56.0404]
[1723158149945,6.1536,162.51,162.43,56.0404]
[1723158150264,6.1548,162.48,162.4,40.65]
[1723158150448,7.69406244,162.47,162.37,40.65]
[1723158150649,40.65,162.57,162.44,6.1559]
[1723158150843,40.65,162.66,162.5,46.8036]
[1723158151037,6.1508,162.58,162.5,40.65]
[1723158151282,30.7321,162.7,162.47,40.65]
[1723158151283,6.1525,162.54,162.47,40.65]
[1723158151465,21.6245,162.61,162.45,0.8338122]
[1723158151466,40.65,162.6,162.45,0.8338122]
[1723158151769,6.1531,162.52,162.45,0.8338122]
[1723158151934,15.3781,162.57,162.45,0.8338122]
[1723158152138,20.0,162.59,162.47,40.65]
[1723158152438,20.0,162.59,162.45,0.8338122]
[1723158152439,6.1484,162.65,162.56,40.65]
[1723158152743,6.1859,162.7,162.48,61.6820819]
[1723158152744,6.1859,162.7,162.59,40.65]
[1723158152947,6.1859,162.7,162.63,6.1485]
[1723158153156,6.1472,162.68,162.62,40.65]
[1723158153466,6.1859,162.7,162.62,40.65]
[1723158153844,12.3323,162.7,162.62,40.65]
[1723158154170,72.05835197,162.78,162.62,40.65]
[1723158154373,6.1472,162.68,162.62,40.65]
[1723158154541,15.362,162.74,162.59,21.5262]
[1723158154742,15.362,162.74,162.5,20.0]
[1723158154743,15.3675,162.69,162.57,40.65]
[1723158154951,40.65,162.72,162.57,40.65]
[1723158155155,1.12238191,162.71,162.57,40.65]
[1723158155363,6.1483,162.65,162.57,40.65]
[1723158155689,30.7205,162.76,162.58,40.65]
[1723158155963,40.65,162.75,162.62,6.1491]
[1723158156176,6.1465,162.7,162.61,56.0237]
[1723158156481,6.4112,162.78,162.58,40.65]
[1723158156482,40.65,162.72,162.58,40.65]
[1723158156773,6.1494,162.62,162.55,40.65]
[1723158156975,6.1503,162.6,162.52,40.65]
[1723158157137,6.1491,162.63,162.54,6.1521]
[1723158157342,56.017,162.69,162.52,46.8029]
[1723158157543,40.65,162.66,162.52,40.65]
[1723158157743,65.0,162.65,162.49,40.65]
[1723158157972,6.1514,162.57,162.49,40.65]
[1723158158355,6.1516,162.56,162.49,40.65]
[1723158158575,6.5952,162.62,162.54,6.1522]
[1723158158941,6.149,162.63,162.55,40.65]
[1723158159141,15.3687,162.67,162.52,56.0323]
[1723158159377,6.1495,162.62,162.53,1.03070064]
[1723158159551,6.1498,162.61,162.52,46.8029]
[1723158159746,15.3687,162.67,162.52,40.65]
[1723158159945,40.65,162.66,162.51,15.3836]
[1723158160264,6.1509,162.58,162.51,15.3836]
[1723158160461,56.0223,162.63,162.49,40.65]
[1723158160667,40.65,162.6,162.46,40.65]
[1723158160857,40.65,162.57,162.43,40.65]
[1723158161178,6.1526,162.54,162.45,6.9894122]
[1723158161351,40.65,162.63,162.46,40.65]
[1723158161669,30.7097,162.64,162.52,40.65]
[1723158161884,6.152,162.55,162.49,40.65]
[1723158162049,30.7097,162.64,162.49,40.65]
[1723158162254,30.7097,162.64,162.46,40.65]
[1723158162255,6.1531,162.52,162.46,40.65]
[1723158162574,15.3763,162.59,162.45,16.2231122]
[1723158162575,15.3763,162.59,162.45,0.8338122]
[1723158162776,40.65,162.63,162.45,0.8338122]
[1723158162777,15.38,162.55,162.45,0.8338122]
[1723158163082,21.53892308,162.54,162.45,0.8338122]
[1723158163379,6.1551,162.47,162.45,0.8338122]
[1723158163748,6.1537,162.51,162.45,0.8338122]
[1723158163953,15.38,162.55,162.45,0.8338122]
[1723158164153,6.155,162.47,162.45,0.8338122]
[1723158164380,6.1547,162.48,162.45,0.8338122]
[1723158164544,6.1552,162.47,162.45,0.8338122]
[1723158164752,6.155,162.47,162.45,0.8338122]
[1723158165370,6.1541,162.5,162.45,0.8338122]
[1723158165749,6.1531,162.52,162.45,0.8338122]
[1723158165946,6.2014,162.55,162.45,0.8338122]
[1723158166348,6.1548,162.48,162.45,0.8338122]
[1723158166773,40.65,162.54,162.45,0.8338122]
[1723158166982,6.2014,162.55,162.45,0.8338122]
[1723158167170,6.2014,162.55,162.45,1.86653699]
[1723158167479,6.2014,162.55,162.46,1.0327224]
[1723158167776,30.7522,162.59,162.46,1.0327224]
[1723158167777,46.7498,162.63,162.47,56.037]
[1723158168083,15.3739,162.62,162.48,1.03145015]
[1723158168269,15.3739,162.62,162.47,40.65]
[1723158168469,6.153,162.53,162.45,0.8338122]
[1723158168759,1.53840894,162.52,162.45,0.8338122]
[1723158168961,1.53857708,162.56,162.45,0.8338122]
[1723158169271,6.1535,162.51,162.45,0.8338122]
[1723158169474,15.3798,162.56,162.45,0.8338122]
[1723158169658,21.53873772,162.55,162.45,0.8338122]
[1723158169972,15.3826,162.53,162.45,0.8338122]
[1723158170203,6.155,162.47,162.45,0.8338122]
[1723158170705,20.0,162.55,162.45,0.8338122]
[1723158171014,40.65,162.57,162.45,0.8338122]
[1723158171015,1.53847135,162.54,162.45,0.8338122]
[1723158171309,6.1551,162.47,162.45,0.8338122]
[1723158171678,6.153,162.53,162.45,0.8338122]
[1723158171878,40.65,162.57,162.45,0.8338122]
[1723158172181,6.1551,162.47,162.45,0.8338122]
[1723158172580,23.0827506,162.47,162.45,0.8338122]
[1723158172890,21.5433,162.47,162.45,0.8338122]
[1723158173300,6.1551,162.47,162.45,0.8338122]
[1723158174616,15.3808,162.54,162.45,0.8338122]
[1723158174811,20.0,162.53,162.45,0.8338122]
[1723158175502,6.1551,162.47,162.45,0.8338122]
[1723158176094,40.65,162.46,162.45,0.8338122]
[1723158176302,40.65,162.46,162.26,15.4065]
[1723158176303,15.3913,162.43,162.26,15.4065]
[1723158176514,40.65,162.42,162.26,15.4065]
[1723158176815,6.1582,162.39,162.31,6.1609]
[1723158177015,6.1579,162.4,162.3,15.403]
[1723158177325,6.157,162.42,162.34,6.1598]
[1723158177484,21.7862,162.47,162.33,15.3998]
[1723158177694,6.156,162.45,162.36,6.1588]
[1723158177915,15.3826,162.53,162.38,40.65]
[1723158178105,6.1547,162.48,162.39,6.1576]
[1723158178296,6.3847,162.54,162.41,40.65]
[1723158178496,6.3847,162.54,162.42,1.03308101]
[1723158178804,15.4015,162.57,162.44,40.65]
[1723158179021,6.152,162.55,162.47,46.8046]
[1723158179312,6.1513,162.57,162.5,40.65]
[1723158179490,56.0204,162.65,162.51,1.03099256]
[1723158179689,56.0204,162.65,162.52,1.031073]
[1723158179914,6.1511,162.58,162.51,1.03107299]
[1723158180116,15.3743,162.61,162.47,40.65]
[1723158180316,6.1525,162.54,162.47,40.65]
[1723158180617,15.4015,162.66,162.53,40.65]
[1723158180806,40.65,162.65,162.5,40.65]
[1723158180988,6.1524,162.54,162.47,40.65]
[1723158181331,40.65,162.59,162.42,15.3919]
[1723158181518,6.1557,162.45,162.37,6.1587]
[1723158181725,40.65,162.49,162.34,15.3996]
[1723158181891,6.1546,162.48,162.38,40.65]
[1723158182094,6.1546,162.48,162.4,6.1575]
[1723158182395,1.5389179,162.47,162.35,40.65]
[1723158182606,6.1567,162.43,162.34,6.1597]
[1723158182809,6.1567,162.43,162.33,15.4002]
[1723158182810,6.1569,162.42,162.33,15.4002]
[1723158183017,6.1594,162.36,162.3,40.65]
[1723158183205,56.0455,162.39,162.29,0.8338122]
[1723158183706,6.1604,162.33,162.29,0.8338122]
[1723158183917,40.65,162.36,162.33,4.24585]
[1723158184292,20.0,162.35,162.33,4.24585]
[1723158185218,20.0,162.35,162.3,10.40625]
[1723158185538,21.5675,162.28,162.27,10.40625]
[1723158185842,82.2175,162.28,162.27,10.40625]
[1723158186214,6.0829,162.23,162.2,10.40625]
[1723158186438,62.2269,162.21,162.2,10.40625]
[1723158186739,6.0829,162.23,162.2,10.40625]
[1723158186916,6.1647,162.22,162.2,10.4740308]
[1723158187108,40.65,162.27,162.2,6.8597208]
[1723158187329,6.1604,162.33,162.25,40.65]
[1723158187533,6.0483,162.39,162.26,1.03741547]
[1723158187935,6.0483,162.39,162.29,15.4044]
[1723158188115,6.0483,162.39,162.26,1.03741547]
[1723158188437,6.0483,162.39,162.25,41.68638319]
[1723158188733,6.0483,162.39,162.26,1.03686865]
[1723158188937,6.0483,162.39,162.25,40.65]
[1723158188938,6.0483,162.39,162.25,41.68677782]
[1723158189111,46.6983,162.39,162.25,40.65]
[1723158189315,6.1604,162.33,162.22,40.65]
[1723158189528,6.1594,162.36,162.23,16.44688612]
[1723158189740,6.1594,162.36,162.25,40.65]
[1723158190044,46.6983,162.39,162.27,6.1622]
[1723158190212,6.0483,162.39,162.28,41.68606786]
[1723158190421,6.1577,162.4,162.31,6.1607]
[1723158190615,6.0483,162.47,162.27,15.406]
[1723158190616,6.1596,162.35,162.27,15.406]
[1723158190918,6.1592,162.36,162.27,21.5684]
[1723158191138,1.54005879,162.35,162.26,6.1626]
[1723158191441,40.65,162.39,162.25,40.65]
[1723158191613,42.19026418,162.39,162.25,40.65]
[1723158191820,6.1604,162.33,162.25,40.65]
[1723158192054,6.1581,162.39,162.3,6.1613]
[1723158192349,6.1587,162.38,162.29,40.65]
[1723158192641,6.1587,162.38,162.29,46.8117]
[1723158192848,6.1569,162.42,162.32,40.65]
[1723158193136,40.65,162.45,162.32,40.65]
[1723158193350,40.65,162.42,162.25,40.65]
[1723158193509,40.65,162.39,162.25,46.8131]
[1723158193713,42.19017863,162.39,162.25,46.8131]
[1723158193936,40.65,162.39,162.22,57.09753612]
[1723158194140,56.0481,162.36,162.22,40.65]
[1723158194445,21.54060634,162.35,162.22,40.65]
[1723158194615,15.3939,162.41,162.28,40.65]
[1723158194814,6.1592,162.36,162.28,46.812]
[1723158195226,6.1596,162.35,162.28,40.65]
[1723158195441,1.54016679,162.39,162.25,40.65]
[1723158195810,60.65,162.4,162.25,40.65]
[1723158195811,6.1599,162.34,162.25,40.65]
[1723158196036,6.1594,162.36,162.27,6.1624]
[1723158196239,6.1598,162.35,162.26,6.1628]
[1723158196442,6.161,162.31,162.25,40.65]
[1723158196930,6.1614,162.3,162.22,46.8142]
[1723158197434,6.1613,162.31,162.22,46.8144]
[1723158197637,56.0485,162.36,162.22,46.8144]
[1723158197838,60.65,162.4,162.23,16.44718607]
[1723158197839,20.0,162.35,162.23,16.44718607]
[1723158198155,6.1609,162.32,162.23,21.5736]
[1723158198320,6.1609,162.32,162.24,1.03739556]
[1723158198639,6.1599,162.34,162.26,6.1629]
[1723158198850,6.1594,162.36,162.26,15.4068]
[1723158199031,40.897697,162.53,162.28,40.65]
[1723158199032,6.1587,162.38,162.28,40.65]
[1723158199428,6.1587,162.38,162.25,40.65]
[1723158199429,6.1561,162.44,162.36,6.1591]
[1723158199627,6.1555,162.46,162.37,7.19345865]
[1723158199823,6.1558,162.45,162.37,7.19345865]
[1723158200024,6.1558,162.45,162.37,6.1586]
[1723158200239,7.58766879,162.47,162.35,15.398]
[1723158200440,6.1572,162.41,162.33,6.1601]
[1723158200643,7.58766879,162.47,162.33,6.1601]
[1723158200956,6.1572,162.42,162.33,6.1601]
[1723158201160,6.1572,162.41,162.33,6.1601]
[1723158201461,6.1572,162.41,162.34,6.1598]
[1723158201639,6.1572,162.41,162.32,40.65]
[1723158201961,6.1572,162.41,162.34,6.1598]
[1723158202264,6.1577,162.4,162.32,40.65]
[1723158202559,6.1582,162.39,162.32,40.65]
[1723158202770,1.53971284,162.45,162.32,40.65]
[1723158203063,40.65,162.46,162.32,40.65]
[1723158203243,40.65,162.46,162.29,20.0]
[1723158203244,6.1554,162.46,162.36,15.3975]
[1723158203568,6.1557,162.45,162.38,6.1583]
[1723158203752,6.0483,162.47,162.39,1.03402378]